{"text_format":"1","workbook":"xlsx","n_sheets":10,"sheets":["Tabelas","Dados Gerais","Tabela de Feriados","Funcionários","MENU","Frente","Verso","Frente e Verso","TODO","Início"],"not_rendered":{"charts":0,"images":5,"macros":1,"external_links":1,"defined_names":23,"comments":0,"pivot_tables":0},"unopened":[],"bounds":{"document_bytes":16777216,"sheet_cells":100000,"rows_first":2000,"rows_last":500,"rows_between":2000,"halvings":0,"cell_chars":16384,"cell_head_chars":4096},"cells_cut":0,"cells_raw":0,"read":"whole","date_system":"1900"}

{"sheet":"Tabelas","index":0,"n_rows":14,"n_cols":5,"rows_kept":14,"cut":false,"hidden":true,"merged":[]}
[]
["Mês","Número Mês"]
["Janeiro",1,null,"Imprime Frente e verso:","Não"]
["Fevereiro",2,null,"Imprime todos os Funcionários:","Não"]
["Março",3]
["Abril",4]
["Maio",5]
["Junho",6]
["Julho",7]
["Agosto",8]
["Setembro",9]
["Outubro",10]
["Novembro",11]
["Dezembro",12]

{"sheet":"Dados Gerais","index":1,"n_rows":13,"n_cols":3,"rows_kept":13,"cut":false,"hidden":true,"merged":[]}
[]
[null,"Campo","Valor"]
[null,"Cidade","Goiania"]
[null,"Estado","GO"]
[null,"Unidade","Goiás"]
[null,"Setor / Depto.","Financeiro"]
[null,"Jornada de Trabalho","8h diárias"]
[null,"Mês"]
[null,"Ano (ex. 2015)"]
[null,"Período Impressão",{"$f":"IF(AND(C8<>\"\",C9<>\"\"),DATE(C9,VLOOKUP(C8,tbMes[],2,FALSE),1),EDATE(TODAY(),1))","v":"2015-04-30"}]
[]
[null,"Primeiro dia do Mês",{"$f":"EOMONTH(PERIODO,-1)+1","v":"2015-04-01"}]
[null,"Último dia do Mês",{"$f":"EOMONTH(PERIODO,0)","v":"2015-04-30"}]

{"sheet":"Tabela de Feriados","index":2,"n_rows":14,"n_cols":4,"rows_kept":14,"cut":false,"hidden":true,"merged":[]}
[]
[null,"Descrição","Data","#Check"]
[null,"Ano novo","2015-01-01",{"$f":"TEXT(tbFeriado[[#This Row],[Data]],\"dd-mmm\")","v":"01-jan"}]
[null,"Carnaval","2015-02-17",{"$f":"TEXT(tbFeriado[[#This Row],[Data]],\"dd-mmm\")","v":"17-fev"}]
[null,"Paixão de Cristo","2015-04-03",{"$f":"TEXT(tbFeriado[[#This Row],[Data]],\"dd-mmm\")","v":"03-abr"}]
[null,"Tiradentes","2015-04-21",{"$f":"TEXT(tbFeriado[[#This Row],[Data]],\"dd-mmm\")","v":"21-abr"}]
[null,"Dia do Trabalho","2015-05-01",{"$f":"TEXT(tbFeriado[[#This Row],[Data]],\"dd-mmm\")","v":"01-mai"}]
[null,"Corpus Christi","2015-06-04",{"$f":"TEXT(tbFeriado[[#This Row],[Data]],\"dd-mmm\")","v":"04-jun"}]
[null,"Independência do Brasil","2015-09-07",{"$f":"TEXT(tbFeriado[[#This Row],[Data]],\"dd-mmm\")","v":"07-set"}]
[null,"Nossa Senhora Aparecida","2015-10-12",{"$f":"TEXT(tbFeriado[[#This Row],[Data]],\"dd-mmm\")","v":"12-out"}]
[null,"Finados","2015-11-02",{"$f":"TEXT(tbFeriado[[#This Row],[Data]],\"dd-mmm\")","v":"02-nov"}]
[null,"Proclamação da República","2015-11-15",{"$f":"TEXT(tbFeriado[[#This Row],[Data]],\"dd-mmm\")","v":"15-nov"}]
[null,"Dia do Evangélico","2015-11-30",{"$f":"TEXT(tbFeriado[[#This Row],[Data]],\"dd-mmm\")","v":"30-nov"}]
[null,"Natal","2015-12-25",{"$f":"TEXT(tbFeriado[[#This Row],[Data]],\"dd-mmm\")","v":"25-dez"}]

{"sheet":"Funcionários","index":3,"n_rows":8,"n_cols":4,"rows_kept":8,"cut":false,"hidden":true,"merged":[]}
[]
[null,"Nome","Matrícula","Cargo"]
[null,"Francisco Lima","555555","Técnico"]
[null,"Humberto Campos","222222","Técnico"]
[null,"José Aparecido","444444","Técnico"]
[null,"José de Alencar","123123","Analista"]
[null,"José de Sousa","666666","Analista"]
[null,"Vinicius de Morais","333333","Analista"]

{"sheet":"MENU","index":4,"n_rows":12,"n_cols":8,"rows_kept":12,"cut":false,"hidden":false,"merged":[[8,2,8,5],[10,2,10,3],[11,1,12,5]]}
[null,null,null,null,null,null,null,"Versão"]
[null,null,null,null,null,null,null,"0.4"]
[]
[]
[]
[]
[]
[]
[null,"Funcionário:","[SELECIONE O FUNCIONÁRIO]"]
[]
[null,"Período: ",{"$f":"PERIODO","v":"2015-04-30"}]
[null,"*Para alterar o período da folha de ponto, clique em 'Dados Gerais' ou consulte o manual."]

{"sheet":"Frente","index":5,"n_rows":45,"n_cols":23,"rows_kept":45,"cut":false,"hidden":true,"merged":[[39,1,39,12],[39,13,39,16],[40,1,44,9],[40,10,43,16],[44,10,44,16],[33,2,33,3],[33,4,33,5],[33,6,33,7],[33,8,33,9],[34,2,34,3],[34,4,34,5],[34,6,34,7],[34,8,34,9],[35,2,35,3],[35,4,35,5],[35,6,35,7],[35,8,35,9],[35,13,35,16],[36,10,36,12],[36,6,36,7],[36,8,36,9],[37,2,37,3],[37,4,37,5],[37,6,37,7],[36,13,36,16],[37,10,37,12],[37,13,37,16],[36,2,36,3],[36,4,36,5],[31,2,31,3],[31,4,31,5],[31,6,31,7],[31,8,31,9],[31,10,31,12],[31,13,31,16],[32,13,32,16],[33,10,33,12],[33,13,33,16],[34,10,34,12],[34,13,34,16],[37,8,37,9],[35,10,35,12],[32,2,32,3],[32,4,32,5],[32,6,32,7],[32,8,32,9],[32,10,32,12],[30,2,30,3],[30,4,30,5],[30,6,30,7],[30,8,30,9],[30,10,30,12],[30,13,30,16],[29,2,29,3],[29,4,29,5],[29,6,29,7],[29,8,29,9],[29,10,29,12],[29,13,29,16],[28,2,28,3],[28,4,28,5],[28,6,28,7],[28,8,28,9],[28,10,28,12],[28,13,28,16],[27,2,27,3],[27,4,27,5],[27,6,27,7],[27,8,27,9],[27,10,27,12],[27,13,27,16],[26,2,26,3],[26,4,26,5],[26,6,26,7],[26,8,26,9],[26,10,26,12],[26,13,26,16],[25,2,25,3],[25,4,25,5],[25,6,25,7],[25,8,25,9],[25,10,25,12],[25,13,25,16],[24,2,24,3],[24,4,24,5],[24,6,24,7],[24,8,24,9],[24,10,24,12],[24,13,24,16],[23,2,23,3],[23,4,23,5],[23,6,23,7],[23,8,23,9],[23,10,23,12],[23,13,23,16],[22,2,22,3],[22,4,22,5],[22,6,22,7],[22,8,22,9],[22,10,22,12],[22,13,22,16],[21,2,21,3],[21,4,21,5],[21,6,21,7],[21,8,21,9],[21,10,21,12],[21,13,21,16],[20,2,20,3],[20,4,20,5],[20,6,20,7],[20,8,20,9],[20,10,20,12],[20,13,20,16],[19,2,19,3],[19,4,19,5],[19,6,19,7],[19,8,19,9],[19,10,19,12],[19,13,19,16],[18,2,18,3],[18,4,18,5],[18,6,18,7],[18,8,18,9],[18,10,18,12],[18,13,18,16],[17,2,17,3],[17,4,17,5],[17,6,17,7],[17,8,17,9],[17,10,17,12],[17,13,17,16],[11,13,11,16],[16,2,16,3],[16,4,16,5],[16,6,16,7],[16,8,16,9],[16,10,16,12],[16,13,16,16],[15,2,15,3],[15,4,15,5],[15,6,15,7],[15,8,15,9],[15,10,15,12],[15,13,15,16],[8,10,8,12],[14,2,14,3],[14,4,14,5],[14,6,14,7],[14,8,14,9],[14,10,14,12],[14,13,14,16],[13,2,13,3],[13,4,13,5],[13,6,13,7],[13,8,13,9],[13,10,13,12],[13,13,13,16],[12,2,12,3],[12,4,12,5],[12,6,12,7],[12,8,12,9],[12,10,12,12],[12,13,12,16],[11,2,11,3],[11,4,11,5],[11,6,11,7],[11,8,11,9],[11,10,11,12],[2,14,2,16],[10,2,10,3],[10,4,10,5],[10,6,10,7],[10,8,10,9],[10,10,10,12],[10,13,10,16],[1,1,1,3],[1,4,1,8],[1,9,1,13],[1,14,1,16],[2,1,2,3],[2,4,2,8],[2,9,2,13],[9,2,9,3],[9,4,9,5],[9,6,9,7],[9,8,9,9],[9,10,9,12],[9,13,9,16],[8,2,8,3],[8,4,8,5],[8,6,8,7],[8,8,8,9],[7,2,7,3],[7,4,7,5],[7,6,7,7],[7,8,7,9],[7,10,7,12],[7,13,7,16],[8,13,8,16],[0,6,0,16],[0,1,0,5],[5,1,6,1],[5,2,5,5],[5,6,5,9],[5,10,6,12],[5,13,6,16],[6,2,6,3],[6,4,6,5],[6,6,6,7],[6,8,6,9],[3,1,3,8],[3,9,3,12],[3,13,3,16],[4,1,4,8],[4,9,4,12],[4,13,4,16]]}
[null,null,null,null,null,null,"FOLHA DE FREQUÊNCIA MENSAL"]
[null,"Mês/Ano:",null,null,"Unidade:",null,null,null,null,"Setor:",null,null,null,null,"Jornada de trabalho:"]
[null,{"$f":"PERIODO","v":"2015-04-30"},null,null,{"$f":"UNIDADE","v":"Goiás"},null,null,null,null,{"$f":"SETOR","v":"Financeiro"},null,null,null,null,{"$f":"JORNADA","v":"8h diárias"}]
[null,"Nome do empregado:",null,null,null,null,null,null,null,"Matrícula:",null,null,null,"Cargo:"]
[null,{"$f":"FUNCIONARIO","v":"[SELECIONE O FUNCIONÁRIO]"},null,null,null,null,null,null,null,{"$f":"IF(ISERROR(VLOOKUP(FUNCIONARIO,tbFuncionario[[Nome]:[Cargo]],2,FALSE)),\"\",VLOOKUP(FUNCIONARIO,tbFuncionario[[Nome]:[Cargo]],2,FALSE))","v":""},null,null,null,{"$f":"IF(ISERROR(VLOOKUP(FUNCIONARIO,tbFuncionario[[Nome]:[Cargo]],3,FALSE)),\"\",VLOOKUP(FUNCIONARIO,tbFuncionario[[Nome]:[Cargo]],3,FALSE))","v":""}]
[null,"Dia","1º Expediente",null,null,null,"2º Expediente",null,null,null,"Horas a compensar",null,null,"Assinatura Empregado(a)"]
[null,null,"Entrada",null,"Saída",null,"Entrada",null,"Saída",null,null,null,null,null,null,null,null,null,"Data","dds","feriado","Colore","S/ Borda"]
[null,{"$f":"IF(S8<>\"\",DAY(S8),\"\")","v":1},null,null,null,null,null,null,null,null,null,null,null,null,null,null,null,null,{"$f":"PRIMEIRO_DIA_MES","v":"2015-04-01"},{"$f":"TEXT(S8,\"ddd\")","v":"qua"},{"$f":"IF(ISERROR(VLOOKUP(TEXT(S8,\"dd-mmm\"),tbFeriado['#Check],1,FALSE)),\"\",\"Sim\")","v":""},{"$f":"IF(OR(T8=\"sáb\",T8=\"dom\",U8<>\"\"),\"Sim\",\"Não\")","v":"Não"},{"$f":"IF(S8=\"\",\"sim\",\"não\")","v":"não"}]
[null,2,null,null,null,null,null,null,null,null,null,null,null,null,null,null,null,null,{"$f":"IF(S8<ULTIMO_DIA_MES,S8+1,\"\")","v":"2015-04-02"},{"$f":"TEXT(S9,\"ddd\")","v":"qui"},{"$f":"IF(ISERROR(VLOOKUP(TEXT(S9,\"dd-mmm\"),tbFeriado['#Check],1,FALSE)),\"\",\"Sim\")","v":""},{"$f":"IF(OR(T9=\"sáb\",T9=\"dom\",U9<>\"\"),\"Sim\",\"Não\")","v":"Não"},{"$f":"IF(S9=\"\",\"sim\",\"não\")","v":"não"}]
[null,3,null,null,null,null,null,null,null,null,null,null,null,null,null,null,null,null,"2015-04-03","sex",{"$f":"IF(ISERROR(VLOOKUP(TEXT(S10,\"dd-mmm\"),tbFeriado['#Check],1,FALSE)),\"\",\"Sim\")","v":"Sim"},"Sim","não"]
[null,4,null,null,null,null,null,null,null,null,null,null,null,null,null,null,null,null,"2015-04-04","sáb",{"$f":"IF(ISERROR(VLOOKUP(TEXT(S11,\"dd-mmm\"),tbFeriado['#Check],1,FALSE)),\"\",\"Sim\")","v":""},"Sim","não"]
[null,5,null,null,null,null,null,null,null,null,null,null,null,null,null,null,null,null,"2015-04-05","dom",{"$f":"IF(ISERROR(VLOOKUP(TEXT(S12,\"dd-mmm\"),tbFeriado['#Check],1,FALSE)),\"\",\"Sim\")","v":""},"Sim","não"]
[null,6,null,null,null,null,null,null,null,null,null,null,null,null,null,null,null,null,"2015-04-06","seg",{"$f":"IF(ISERROR(VLOOKUP(TEXT(S13,\"dd-mmm\"),tbFeriado['#Check],1,FALSE)),\"\",\"Sim\")","v":""},"Não","não"]
[null,7,null,null,null,null,null,null,null,null,null,null,null,null,null,null,null,null,"2015-04-07","ter",{"$f":"IF(ISERROR(VLOOKUP(TEXT(S14,\"dd-mmm\"),tbFeriado['#Check],1,FALSE)),\"\",\"Sim\")","v":""},"Não","não"]
[null,8,null,null,null,null,null,null,null,null,null,null,null,null,null,null,null,null,"2015-04-08","qua",{"$f":"IF(ISERROR(VLOOKUP(TEXT(S15,\"dd-mmm\"),tbFeriado['#Check],1,FALSE)),\"\",\"Sim\")","v":""},"Não","não"]
[null,9,null,null,null,null,null,null,null,null,null,null,null,null,null,null,null,null,"2015-04-09","qui",{"$f":"IF(ISERROR(VLOOKUP(TEXT(S16,\"dd-mmm\"),tbFeriado['#Check],1,FALSE)),\"\",\"Sim\")","v":""},"Não","não"]
[null,10,null,null,null,null,null,null,null,null,null,null,null,null,null,null,null,null,"2015-04-10","sex",{"$f":"IF(ISERROR(VLOOKUP(TEXT(S17,\"dd-mmm\"),tbFeriado['#Check],1,FALSE)),\"\",\"Sim\")","v":""},"Não","não"]
[null,11,null,null,null,null,null,null,null,null,null,null,null,null,null,null,null,null,"2015-04-11","sáb",{"$f":"IF(ISERROR(VLOOKUP(TEXT(S18,\"dd-mmm\"),tbFeriado['#Check],1,FALSE)),\"\",\"Sim\")","v":""},"Sim","não"]
[null,12,null,null,null,null,null,null,null,null,null,null,null,null,null,null,null,null,"2015-04-12","dom",{"$f":"IF(ISERROR(VLOOKUP(TEXT(S19,\"dd-mmm\"),tbFeriado['#Check],1,FALSE)),\"\",\"Sim\")","v":""},"Sim","não"]
[null,13,null,null,null,null,null,null,null,null,null,null,null,null,null,null,null,null,"2015-04-13","seg",{"$f":"IF(ISERROR(VLOOKUP(TEXT(S20,\"dd-mmm\"),tbFeriado['#Check],1,FALSE)),\"\",\"Sim\")","v":""},"Não","não"]
[null,14,null,null,null,null,null,null,null,null,null,null,null,null,null,null,null,null,"2015-04-14","ter",{"$f":"IF(ISERROR(VLOOKUP(TEXT(S21,\"dd-mmm\"),tbFeriado['#Check],1,FALSE)),\"\",\"Sim\")","v":""},"Não","não"]
[null,15,null,null,null,null,null,null,null,null,null,null,null,null,null,null,null,null,"2015-04-15","qua",{"$f":"IF(ISERROR(VLOOKUP(TEXT(S22,\"dd-mmm\"),tbFeriado['#Check],1,FALSE)),\"\",\"Sim\")","v":""},"Não","não"]
[null,16,null,null,null,null,null,null,null,null,null,null,null,null,null,null,null,null,"2015-04-16","qui",{"$f":"IF(ISERROR(VLOOKUP(TEXT(S23,\"dd-mmm\"),tbFeriado['#Check],1,FALSE)),\"\",\"Sim\")","v":""},"Não","não"]
[null,17,null,null,null,null,null,null,null,null,null,null,null,null,null,null,null,null,"2015-04-17","sex",{"$f":"IF(ISERROR(VLOOKUP(TEXT(S24,\"dd-mmm\"),tbFeriado['#Check],1,FALSE)),\"\",\"Sim\")","v":""},"Não","não"]
[null,18,null,null,null,null,null,null,null,null,null,null,null,null,null,null,null,null,"2015-04-18","sáb",{"$f":"IF(ISERROR(VLOOKUP(TEXT(S25,\"dd-mmm\"),tbFeriado['#Check],1,FALSE)),\"\",\"Sim\")","v":""},"Sim","não"]
[null,19,null,null,null,null,null,null,null,null,null,null,null,null,null,null,null,null,"2015-04-19","dom",{"$f":"IF(ISERROR(VLOOKUP(TEXT(S26,\"dd-mmm\"),tbFeriado['#Check],1,FALSE)),\"\",\"Sim\")","v":""},"Sim","não"]
[null,20,null,null,null,null,null,null,null,null,null,null,null,null,null,null,null,null,"2015-04-20","seg",{"$f":"IF(ISERROR(VLOOKUP(TEXT(S27,\"dd-mmm\"),tbFeriado['#Check],1,FALSE)),\"\",\"Sim\")","v":""},"Não","não"]
[null,21,null,null,null,null,null,null,null,null,null,null,null,null,null,null,null,null,"2015-04-21","ter",{"$f":"IF(ISERROR(VLOOKUP(TEXT(S28,\"dd-mmm\"),tbFeriado['#Check],1,FALSE)),\"\",\"Sim\")","v":"Sim"},"Sim","não"]
[null,22,null,null,null,null,null,null,null,null,null,null,null,null,null,null,null,null,"2015-04-22","qua",{"$f":"IF(ISERROR(VLOOKUP(TEXT(S29,\"dd-mmm\"),tbFeriado['#Check],1,FALSE)),\"\",\"Sim\")","v":""},"Não","não"]
[null,23,null,null,null,null,null,null,null,null,null,null,null,null,null,null,null,null,"2015-04-23","qui",{"$f":"IF(ISERROR(VLOOKUP(TEXT(S30,\"dd-mmm\"),tbFeriado['#Check],1,FALSE)),\"\",\"Sim\")","v":""},"Não","não"]
[null,24,null,null,null,null,null,null,null,null,null,null,null,null,null,null,null,null,"2015-04-24","sex",{"$f":"IF(ISERROR(VLOOKUP(TEXT(S31,\"dd-mmm\"),tbFeriado['#Check],1,FALSE)),\"\",\"Sim\")","v":""},"Não","não"]
[null,25,null,null,null,null,null,null,null,null,null,null,null,null,null,null,null,null,"2015-04-25","sáb",{"$f":"IF(ISERROR(VLOOKUP(TEXT(S32,\"dd-mmm\"),tbFeriado['#Check],1,FALSE)),\"\",\"Sim\")","v":""},"Sim","não"]
[null,26,null,null,null,null,null,null,null,null,null,null,null,null,null,null,null,null,"2015-04-26","dom",{"$f":"IF(ISERROR(VLOOKUP(TEXT(S33,\"dd-mmm\"),tbFeriado['#Check],1,FALSE)),\"\",\"Sim\")","v":""},"Sim","não"]
[null,27,null,null,null,null,null,null,null,null,null,null,null,null,null,null,null,null,"2015-04-27","seg",{"$f":"IF(ISERROR(VLOOKUP(TEXT(S34,\"dd-mmm\"),tbFeriado['#Check],1,FALSE)),\"\",\"Sim\")","v":""},"Não","não"]
[null,28,null,null,null,null,null,null,null,null,null,null,null,null,null,null,null,null,"2015-04-28","ter",{"$f":"IF(ISERROR(VLOOKUP(TEXT(S35,\"dd-mmm\"),tbFeriado['#Check],1,FALSE)),\"\",\"Sim\")","v":""},"Não","não"]
[null,29,null,null,null,null,null,null,null,null,null,null,null,null,null,null,null,null,"2015-04-29","qua",{"$f":"IF(ISERROR(VLOOKUP(TEXT(S36,\"dd-mmm\"),tbFeriado['#Check],1,FALSE)),\"\",\"Sim\")","v":""},"Não","não"]
[null,30,null,null,null,null,null,null,null,null,null,null,null,null,null,null,null,null,"2015-04-30","qui",{"$f":"IF(ISERROR(VLOOKUP(TEXT(S37,\"dd-mmm\"),tbFeriado['#Check],1,FALSE)),\"\",\"Sim\")","v":""},"Não","não"]
[null,{"$f":"IF(S38<>\"\",DAY(S38),\"\")","v":""},null,null,null,null,null,null,null,null,null,null,null,null,null,null,null,null,"",{"$f":"TEXT(S38,\"ddd\")","v":""},{"$f":"IF(ISERROR(VLOOKUP(TEXT(S38,\"dd-mmm\"),tbFeriado['#Check],1,FALSE)),\"\",\"Sim\")","v":""},"Não","sim"]
[]
[null,"Quantidade de horas:"]
[null,{"$f":"CIDADE & \"-\" & ESTADO & \", \" & TEXT(ULTIMO_DIA_MES, \"dd \\d\\e mmmm \\d\\e aaaa\") & \".\"","v":"Goiania-GO, 30 de abril de 2015."},null,null,null,null,null,null,null,null,"De acordo:"]
[]
[]
[]
[null,null,null,null,null,null,null,null,null,null,"Carimbo e assinatura do superior imediato"]

{"sheet":"Verso","index":6,"n_rows":41,"n_cols":20,"rows_kept":41,"cut":false,"hidden":true,"merged":[[29,2,29,16],[34,1,34,8],[34,9,34,16],[35,1,35,8],[35,9,35,16],[30,2,30,16],[31,2,31,16],[32,2,32,16],[28,2,28,16],[17,2,17,16],[18,2,18,16],[19,2,19,16],[20,2,20,16],[21,2,21,16],[22,2,22,16],[23,2,23,16],[24,2,24,16],[25,2,25,16],[26,2,26,16],[27,2,27,16],[16,2,16,16],[5,2,5,16],[6,2,6,16],[7,2,7,16],[8,2,8,16],[9,2,9,16],[10,2,10,16],[11,2,11,16],[12,2,12,16],[13,2,13,16],[14,2,14,16],[15,2,15,16],[1,2,1,16],[2,2,2,16],[3,2,3,16],[4,2,4,16],[0,6,0,16],[0,1,0,5]]}
[null,null,null,null,null,null,"FOLHA DE FREQUÊNCIA MENSAL"]
[null,"Dia","OBSERVAÇÕES",null,null,null,null,null,null,null,null,null,null,null,null,null,null,null,null,"S/ Borda"]
[null,{"$f":"Frente!B8","v":1},null,null,null,null,null,null,null,null,null,null,null,null,null,null,null,null,null,{"$f":"Frente!W8","v":"não"}]
[null,{"$f":"Frente!B9","v":2},null,null,null,null,null,null,null,null,null,null,null,null,null,null,null,null,null,{"$f":"Frente!W9","v":"não"}]
[null,{"$f":"Frente!B10","v":3},null,null,null,null,null,null,null,null,null,null,null,null,null,null,null,null,null,{"$f":"Frente!W10","v":"não"}]
[null,{"$f":"Frente!B11","v":4},null,null,null,null,null,null,null,null,null,null,null,null,null,null,null,null,null,{"$f":"Frente!W11","v":"não"}]
[null,{"$f":"Frente!B12","v":5},null,null,null,null,null,null,null,null,null,null,null,null,null,null,null,null,null,{"$f":"Frente!W12","v":"não"}]
[null,{"$f":"Frente!B13","v":6},null,null,null,null,null,null,null,null,null,null,null,null,null,null,null,null,null,{"$f":"Frente!W13","v":"não"}]
[null,{"$f":"Frente!B14","v":7},null,null,null,null,null,null,null,null,null,null,null,null,null,null,null,null,null,{"$f":"Frente!W14","v":"não"}]
[null,{"$f":"Frente!B15","v":8},null,null,null,null,null,null,null,null,null,null,null,null,null,null,null,null,null,{"$f":"Frente!W15","v":"não"}]
[null,{"$f":"Frente!B16","v":9},null,null,null,null,null,null,null,null,null,null,null,null,null,null,null,null,null,{"$f":"Frente!W16","v":"não"}]
[null,{"$f":"Frente!B17","v":10},null,null,null,null,null,null,null,null,null,null,null,null,null,null,null,null,null,{"$f":"Frente!W17","v":"não"}]
[null,{"$f":"Frente!B18","v":11},null,null,null,null,null,null,null,null,null,null,null,null,null,null,null,null,null,{"$f":"Frente!W18","v":"não"}]
[null,{"$f":"Frente!B19","v":12},null,null,null,null,null,null,null,null,null,null,null,null,null,null,null,null,null,{"$f":"Frente!W19","v":"não"}]
[null,{"$f":"Frente!B20","v":13},null,null,null,null,null,null,null,null,null,null,null,null,null,null,null,null,null,{"$f":"Frente!W20","v":"não"}]
[null,{"$f":"Frente!B21","v":14},null,null,null,null,null,null,null,null,null,null,null,null,null,null,null,null,null,{"$f":"Frente!W21","v":"não"}]
[null,{"$f":"Frente!B22","v":15},null,null,null,null,null,null,null,null,null,null,null,null,null,null,null,null,null,{"$f":"Frente!W22","v":"não"}]
[null,{"$f":"Frente!B23","v":16},null,null,null,null,null,null,null,null,null,null,null,null,null,null,null,null,null,{"$f":"Frente!W23","v":"não"}]
[null,{"$f":"Frente!B24","v":17},null,null,null,null,null,null,null,null,null,null,null,null,null,null,null,null,null,{"$f":"Frente!W24","v":"não"}]
[null,{"$f":"Frente!B25","v":18},null,null,null,null,null,null,null,null,null,null,null,null,null,null,null,null,null,{"$f":"Frente!W25","v":"não"}]
[null,{"$f":"Frente!B26","v":19},null,null,null,null,null,null,null,null,null,null,null,null,null,null,null,null,null,{"$f":"Frente!W26","v":"não"}]
[null,{"$f":"Frente!B27","v":20},null,null,null,null,null,null,null,null,null,null,null,null,null,null,null,null,null,{"$f":"Frente!W27","v":"não"}]
[null,{"$f":"Frente!B28","v":21},null,null,null,null,null,null,null,null,null,null,null,null,null,null,null,null,null,{"$f":"Frente!W28","v":"não"}]
[null,{"$f":"Frente!B29","v":22},null,null,null,null,null,null,null,null,null,null,null,null,null,null,null,null,null,{"$f":"Frente!W29","v":"não"}]
[null,{"$f":"Frente!B30","v":23},null,null,null,null,null,null,null,null,null,null,null,null,null,null,null,null,null,{"$f":"Frente!W30","v":"não"}]
[null,{"$f":"Frente!B31","v":24},null,null,null,null,null,null,null,null,null,null,null,null,null,null,null,null,null,{"$f":"Frente!W31","v":"não"}]
[null,{"$f":"Frente!B32","v":25},null,null,null,null,null,null,null,null,null,null,null,null,null,null,null,null,null,{"$f":"Frente!W32","v":"não"}]
[null,{"$f":"Frente!B33","v":26},null,null,null,null,null,null,null,null,null,null,null,null,null,null,null,null,null,{"$f":"Frente!W33","v":"não"}]
[null,{"$f":"Frente!B34","v":27},null,null,null,null,null,null,null,null,null,null,null,null,null,null,null,null,null,{"$f":"Frente!W34","v":"não"}]
[null,{"$f":"Frente!B35","v":28},null,null,null,null,null,null,null,null,null,null,null,null,null,null,null,null,null,{"$f":"Frente!W35","v":"não"}]
[null,{"$f":"Frente!B36","v":29},null,null,null,null,null,null,null,null,null,null,null,null,null,null,null,null,null,{"$f":"Frente!W36","v":"não"}]
[null,{"$f":"Frente!B37","v":30},null,null,null,null,null,null,null,null,null,null,null,null,null,null,null,null,null,{"$f":"Frente!W37","v":"não"}]
[null,{"$f":"Frente!B38","v":""},null,null,null,null,null,null,null,null,null,null,null,null,null,null,null,null,null,{"$f":"Frente!W38","v":"sim"}]
[]
[null,null,null,null,null,null,null,null,null,"De acordo:"]
[null,"Assinatura do(a) empregado(a)",null,null,null,null,null,null,null,"Carimbo e assinatura do superior imediato",null,null,null,null,null,null,null," "]
[]
[]
[]
[]
[null,{"$f":"CIDADE & \"-\" & ESTADO & \", \" & TEXT(ULTIMO_DIA_MES, \"dd \\d\\e mmmm \\d\\e aaaa\") & \".\"","v":"Goiania-GO, 30 de abril de 2015."}]

{"sheet":"Frente e Verso","index":7,"n_rows":82,"n_cols":23,"rows_kept":82,"cut":false,"hidden":true,"merged":[[77,2,77,16],[78,2,78,16],[80,1,80,8],[80,9,80,16],[81,1,81,8],[81,9,81,16],[71,2,71,16],[72,2,72,16],[73,2,73,16],[74,2,74,16],[75,2,75,16],[76,2,76,16],[65,2,65,16],[66,2,66,16],[67,2,67,16],[68,2,68,16],[69,2,69,16],[70,2,70,16],[59,2,59,16],[60,2,60,16],[61,2,61,16],[62,2,62,16],[63,2,63,16],[64,2,64,16],[53,2,53,16],[54,2,54,16],[55,2,55,16],[56,2,56,16],[57,2,57,16],[58,2,58,16],[47,2,47,16],[48,2,48,16],[49,2,49,16],[50,2,50,16],[51,2,51,16],[52,2,52,16],[39,1,39,12],[39,13,39,16],[40,1,44,9],[40,10,43,16],[44,10,44,16],[46,1,46,5],[46,6,46,16],[37,2,37,3],[37,4,37,5],[37,6,37,7],[37,8,37,9],[37,10,37,12],[37,13,37,16],[36,2,36,3],[36,4,36,5],[36,6,36,7],[36,8,36,9],[36,10,36,12],[36,13,36,16],[35,2,35,3],[35,4,35,5],[35,6,35,7],[35,8,35,9],[35,10,35,12],[35,13,35,16],[34,2,34,3],[34,4,34,5],[34,6,34,7],[34,8,34,9],[34,10,34,12],[34,13,34,16],[33,2,33,3],[33,4,33,5],[33,6,33,7],[33,8,33,9],[33,10,33,12],[33,13,33,16],[32,2,32,3],[32,4,32,5],[32,6,32,7],[32,8,32,9],[32,10,32,12],[32,13,32,16],[31,2,31,3],[31,4,31,5],[31,6,31,7],[31,8,31,9],[31,10,31,12],[31,13,31,16],[30,2,30,3],[30,4,30,5],[30,6,30,7],[30,8,30,9],[30,10,30,12],[30,13,30,16],[29,2,29,3],[29,4,29,5],[29,6,29,7],[29,8,29,9],[29,10,29,12],[29,13,29,16],[28,2,28,3],[28,4,28,5],[28,6,28,7],[28,8,28,9],[28,10,28,12],[28,13,28,16],[27,2,27,3],[27,4,27,5],[27,6,27,7],[27,8,27,9],[27,10,27,12],[27,13,27,16],[26,2,26,3],[26,4,26,5],[26,6,26,7],[26,8,26,9],[26,10,26,12],[26,13,26,16],[25,2,25,3],[25,4,25,5],[25,6,25,7],[25,8,25,9],[25,10,25,12],[25,13,25,16],[24,2,24,3],[24,4,24,5],[24,6,24,7],[24,8,24,9],[24,10,24,12],[24,13,24,16],[23,2,23,3],[23,4,23,5],[23,6,23,7],[23,8,23,9],[23,10,23,12],[23,13,23,16],[22,2,22,3],[22,4,22,5],[22,6,22,7],[22,8,22,9],[22,10,22,12],[22,13,22,16],[21,2,21,3],[21,4,21,5],[21,6,21,7],[21,8,21,9],[21,10,21,12],[21,13,21,16],[20,2,20,3],[20,4,20,5],[20,6,20,7],[20,8,20,9],[20,10,20,12],[20,13,20,16],[19,2,19,3],[19,4,19,5],[19,6,19,7],[19,8,19,9],[19,10,19,12],[19,13,19,16],[18,2,18,3],[18,4,18,5],[18,6,18,7],[18,8,18,9],[18,10,18,12],[18,13,18,16],[17,2,17,3],[17,4,17,5],[17,6,17,7],[17,8,17,9],[17,10,17,12],[17,13,17,16],[16,2,16,3],[16,4,16,5],[16,6,16,7],[16,8,16,9],[16,10,16,12],[16,13,16,16],[15,2,15,3],[15,4,15,5],[15,6,15,7],[15,8,15,9],[15,10,15,12],[15,13,15,16],[14,2,14,3],[14,4,14,5],[14,6,14,7],[14,8,14,9],[14,10,14,12],[14,13,14,16],[13,2,13,3],[13,4,13,5],[13,6,13,7],[13,8,13,9],[13,10,13,12],[13,13,13,16],[12,2,12,3],[12,4,12,5],[12,6,12,7],[12,8,12,9],[12,10,12,12],[12,13,12,16],[11,2,11,3],[11,4,11,5],[11,6,11,7],[11,8,11,9],[11,10,11,12],[11,13,11,16],[10,2,10,3],[10,4,10,5],[10,6,10,7],[10,8,10,9],[10,10,10,12],[10,13,10,16],[9,2,9,3],[9,4,9,5],[9,6,9,7],[9,8,9,9],[9,10,9,12],[9,13,9,16],[7,10,7,12],[7,13,7,16],[8,2,8,3],[8,4,8,5],[8,6,8,7],[8,8,8,9],[8,10,8,12],[8,13,8,16],[6,6,6,7],[6,8,6,9],[7,2,7,3],[7,4,7,5],[7,6,7,7],[7,8,7,9],[4,1,4,8],[4,9,4,12],[4,13,4,16],[5,1,6,1],[5,2,5,5],[5,6,5,9],[5,10,6,12],[5,13,6,16],[6,2,6,3],[6,4,6,5],[2,1,2,3],[2,4,2,8],[2,9,2,13],[2,14,2,16],[3,1,3,8],[3,9,3,12],[3,13,3,16],[0,1,0,5],[0,6,0,16],[1,1,1,3],[1,4,1,8],[1,9,1,13],[1,14,1,16]]}
[null,null,null,null,null,null,"FOLHA DE FREQUÊNCIA MENSAL"]
[null,"Mês/Ano:",null,null,"Unidade:",null,null,null,null,"Setor:",null,null,null,null,"Jornada de trabalho:"]
[null,{"$f":"PERIODO","v":"2015-04-30"},null,null,{"$f":"UNIDADE","v":"Goiás"},null,null,null,null,{"$f":"SETOR","v":"Financeiro"},null,null,null,null,{"$f":"JORNADA","v":"8h diárias"}]
[null,"Nome do empregado:",null,null,null,null,null,null,null,"Matrícula:",null,null,null,"Cargo:"]
[null,{"$f":"FUNCIONARIO","v":"[SELECIONE O FUNCIONÁRIO]"},null,null,null,null,null,null,null,{"$f":"IF(ISERROR(VLOOKUP(FUNCIONARIO,tbFuncionario[[Nome]:[Cargo]],2,FALSE)),\"\",VLOOKUP(FUNCIONARIO,tbFuncionario[[Nome]:[Cargo]],2,FALSE))","v":""},null,null,null,{"$f":"IF(ISERROR(VLOOKUP(FUNCIONARIO,tbFuncionario[[Nome]:[Cargo]],3,FALSE)),\"\",VLOOKUP(FUNCIONARIO,tbFuncionario[[Nome]:[Cargo]],3,FALSE))","v":""}]
[null,"Dia","1º Expediente",null,null,null,"2º Expediente",null,null,null,"Horas a compensar",null,null,"Assinatura Empregado(a)"]
[null,null,"Entrada",null,"Saída",null,"Entrada",null,"Saída",null,null,null,null,null,null,null,null,null,"Data","dds","feriado","Colore","S/ Borda"]
[null,{"$f":"IF(S8<>\"\",DAY(S8),\"\")","v":1},null,null,null,null,null,null,null,null,null,null,null,null,null,null,null,null,{"$f":"PRIMEIRO_DIA_MES","v":"2015-04-01"},{"$f":"TEXT(S8,\"ddd\")","v":"qua"},{"$f":"IF(ISERROR(VLOOKUP(TEXT(S8,\"dd-mmm\"),tbFeriado['#Check],1,FALSE)),\"\",\"Sim\")","v":""},{"$f":"IF(OR(T8=\"sáb\",T8=\"dom\",U8<>\"\"),\"Sim\",\"Não\")","v":"Não"},{"$f":"IF(S8=\"\",\"sim\",\"não\")","v":"não"}]
[null,2,null,null,null,null,null,null,null,null,null,null,null,null,null,null,null,null,{"$f":"IF(S8<ULTIMO_DIA_MES,S8+1,\"\")","v":"2015-04-02"},{"$f":"TEXT(S9,\"ddd\")","v":"qui"},{"$f":"IF(ISERROR(VLOOKUP(TEXT(S9,\"dd-mmm\"),tbFeriado['#Check],1,FALSE)),\"\",\"Sim\")","v":""},{"$f":"IF(OR(T9=\"sáb\",T9=\"dom\",U9<>\"\"),\"Sim\",\"Não\")","v":"Não"},{"$f":"IF(S9=\"\",\"sim\",\"não\")","v":"não"}]
[null,3,null,null,null,null,null,null,null,null,null,null,null,null,null,null,null,null,"2015-04-03","sex",{"$f":"IF(ISERROR(VLOOKUP(TEXT(S10,\"dd-mmm\"),tbFeriado['#Check],1,FALSE)),\"\",\"Sim\")","v":"Sim"},"Sim","não"]
[null,4,null,null,null,null,null,null,null,null,null,null,null,null,null,null,null,null,"2015-04-04","sáb",{"$f":"IF(ISERROR(VLOOKUP(TEXT(S11,\"dd-mmm\"),tbFeriado['#Check],1,FALSE)),\"\",\"Sim\")","v":""},"Sim","não"]
[null,5,null,null,null,null,null,null,null,null,null,null,null,null,null,null,null,null,"2015-04-05","dom",{"$f":"IF(ISERROR(VLOOKUP(TEXT(S12,\"dd-mmm\"),tbFeriado['#Check],1,FALSE)),\"\",\"Sim\")","v":""},"Sim","não"]
[null,6,null,null,null,null,null,null,null,null,null,null,null,null,null,null,null,null,"2015-04-06","seg",{"$f":"IF(ISERROR(VLOOKUP(TEXT(S13,\"dd-mmm\"),tbFeriado['#Check],1,FALSE)),\"\",\"Sim\")","v":""},"Não","não"]
[null,7,null,null,null,null,null,null,null,null,null,null,null,null,null,null,null,null,"2015-04-07","ter",{"$f":"IF(ISERROR(VLOOKUP(TEXT(S14,\"dd-mmm\"),tbFeriado['#Check],1,FALSE)),\"\",\"Sim\")","v":""},"Não","não"]
[null,8,null,null,null,null,null,null,null,null,null,null,null,null,null,null,null,null,"2015-04-08","qua",{"$f":"IF(ISERROR(VLOOKUP(TEXT(S15,\"dd-mmm\"),tbFeriado['#Check],1,FALSE)),\"\",\"Sim\")","v":""},"Não","não"]
[null,9,null,null,null,null,null,null,null,null,null,null,null,null,null,null,null,null,"2015-04-09","qui",{"$f":"IF(ISERROR(VLOOKUP(TEXT(S16,\"dd-mmm\"),tbFeriado['#Check],1,FALSE)),\"\",\"Sim\")","v":""},"Não","não"]
[null,10,null,null,null,null,null,null,null,null,null,null,null,null,null,null,null,null,"2015-04-10","sex",{"$f":"IF(ISERROR(VLOOKUP(TEXT(S17,\"dd-mmm\"),tbFeriado['#Check],1,FALSE)),\"\",\"Sim\")","v":""},"Não","não"]
[null,11,null,null,null,null,null,null,null,null,null,null,null,null,null,null,null,null,"2015-04-11","sáb",{"$f":"IF(ISERROR(VLOOKUP(TEXT(S18,\"dd-mmm\"),tbFeriado['#Check],1,FALSE)),\"\",\"Sim\")","v":""},"Sim","não"]
[null,12,null,null,null,null,null,null,null,null,null,null,null,null,null,null,null,null,"2015-04-12","dom",{"$f":"IF(ISERROR(VLOOKUP(TEXT(S19,\"dd-mmm\"),tbFeriado['#Check],1,FALSE)),\"\",\"Sim\")","v":""},"Sim","não"]
[null,13,null,null,null,null,null,null,null,null,null,null,null,null,null,null,null,null,"2015-04-13","seg",{"$f":"IF(ISERROR(VLOOKUP(TEXT(S20,\"dd-mmm\"),tbFeriado['#Check],1,FALSE)),\"\",\"Sim\")","v":""},"Não","não"]
[null,14,null,null,null,null,null,null,null,null,null,null,null,null,null,null,null,null,"2015-04-14","ter",{"$f":"IF(ISERROR(VLOOKUP(TEXT(S21,\"dd-mmm\"),tbFeriado['#Check],1,FALSE)),\"\",\"Sim\")","v":""},"Não","não"]
[null,15,null,null,null,null,null,null,null,null,null,null,null,null,null,null,null,null,"2015-04-15","qua",{"$f":"IF(ISERROR(VLOOKUP(TEXT(S22,\"dd-mmm\"),tbFeriado['#Check],1,FALSE)),\"\",\"Sim\")","v":""},"Não","não"]
[null,16,null,null,null,null,null,null,null,null,null,null,null,null,null,null,null,null,"2015-04-16","qui",{"$f":"IF(ISERROR(VLOOKUP(TEXT(S23,\"dd-mmm\"),tbFeriado['#Check],1,FALSE)),\"\",\"Sim\")","v":""},"Não","não"]
[null,17,null,null,null,null,null,null,null,null,null,null,null,null,null,null,null,null,"2015-04-17","sex",{"$f":"IF(ISERROR(VLOOKUP(TEXT(S24,\"dd-mmm\"),tbFeriado['#Check],1,FALSE)),\"\",\"Sim\")","v":""},"Não","não"]
[null,18,null,null,null,null,null,null,null,null,null,null,null,null,null,null,null,null,"2015-04-18","sáb",{"$f":"IF(ISERROR(VLOOKUP(TEXT(S25,\"dd-mmm\"),tbFeriado['#Check],1,FALSE)),\"\",\"Sim\")","v":""},"Sim","não"]
[null,19,null,null,null,null,null,null,null,null,null,null,null,null,null,null,null,null,"2015-04-19","dom",{"$f":"IF(ISERROR(VLOOKUP(TEXT(S26,\"dd-mmm\"),tbFeriado['#Check],1,FALSE)),\"\",\"Sim\")","v":""},"Sim","não"]
[null,20,null,null,null,null,null,null,null,null,null,null,null,null,null,null,null,null,"2015-04-20","seg",{"$f":"IF(ISERROR(VLOOKUP(TEXT(S27,\"dd-mmm\"),tbFeriado['#Check],1,FALSE)),\"\",\"Sim\")","v":""},"Não","não"]
[null,21,null,null,null,null,null,null,null,null,null,null,null,null,null,null,null,null,"2015-04-21","ter",{"$f":"IF(ISERROR(VLOOKUP(TEXT(S28,\"dd-mmm\"),tbFeriado['#Check],1,FALSE)),\"\",\"Sim\")","v":"Sim"},"Sim","não"]
[null,22,null,null,null,null,null,null,null,null,null,null,null,null,null,null,null,null,"2015-04-22","qua",{"$f":"IF(ISERROR(VLOOKUP(TEXT(S29,\"dd-mmm\"),tbFeriado['#Check],1,FALSE)),\"\",\"Sim\")","v":""},"Não","não"]
[null,23,null,null,null,null,null,null,null,null,null,null,null,null,null,null,null,null,"2015-04-23","qui",{"$f":"IF(ISERROR(VLOOKUP(TEXT(S30,\"dd-mmm\"),tbFeriado['#Check],1,FALSE)),\"\",\"Sim\")","v":""},"Não","não"]
[null,24,null,null,null,null,null,null,null,null,null,null,null,null,null,null,null,null,"2015-04-24","sex",{"$f":"IF(ISERROR(VLOOKUP(TEXT(S31,\"dd-mmm\"),tbFeriado['#Check],1,FALSE)),\"\",\"Sim\")","v":""},"Não","não"]
[null,25,null,null,null,null,null,null,null,null,null,null,null,null,null,null,null,null,"2015-04-25","sáb",{"$f":"IF(ISERROR(VLOOKUP(TEXT(S32,\"dd-mmm\"),tbFeriado['#Check],1,FALSE)),\"\",\"Sim\")","v":""},"Sim","não"]
[null,26,null,null,null,null,null,null,null,null,null,null,null,null,null,null,null,null,"2015-04-26","dom",{"$f":"IF(ISERROR(VLOOKUP(TEXT(S33,\"dd-mmm\"),tbFeriado['#Check],1,FALSE)),\"\",\"Sim\")","v":""},"Sim","não"]
[null,27,null,null,null,null,null,null,null,null,null,null,null,null,null,null,null,null,"2015-04-27","seg",{"$f":"IF(ISERROR(VLOOKUP(TEXT(S34,\"dd-mmm\"),tbFeriado['#Check],1,FALSE)),\"\",\"Sim\")","v":""},"Não","não"]
[null,28,null,null,null,null,null,null,null,null,null,null,null,null,null,null,null,null,"2015-04-28","ter",{"$f":"IF(ISERROR(VLOOKUP(TEXT(S35,\"dd-mmm\"),tbFeriado['#Check],1,FALSE)),\"\",\"Sim\")","v":""},"Não","não"]
[null,29,null,null,null,null,null,null,null,null,null,null,null,null,null,null,null,null,"2015-04-29","qua",{"$f":"IF(ISERROR(VLOOKUP(TEXT(S36,\"dd-mmm\"),tbFeriado['#Check],1,FALSE)),\"\",\"Sim\")","v":""},"Não","não"]
[null,30,null,null,null,null,null,null,null,null,null,null,null,null,null,null,null,null,"2015-04-30","qui",{"$f":"IF(ISERROR(VLOOKUP(TEXT(S37,\"dd-mmm\"),tbFeriado['#Check],1,FALSE)),\"\",\"Sim\")","v":""},"Não","não"]
[null,{"$f":"IF(S38<>\"\",DAY(S38),\"\")","v":""},null,null,null,null,null,null,null,null,null,null,null,null,null,null,null,null,"",{"$f":"TEXT(S38,\"ddd\")","v":""},{"$f":"IF(ISERROR(VLOOKUP(TEXT(S38,\"dd-mmm\"),tbFeriado['#Check],1,FALSE)),\"\",\"Sim\")","v":""},"Não","sim"]
[]
[null,"Quantidade de horas:"]
[null,{"$f":"CIDADE & \"-\" & ESTADO & \", \" & TEXT(ULTIMO_DIA_MES, \"dd \\d\\e mmmm \\d\\e aaaa\") & \".\"","v":"Goiania-GO, 30 de abril de 2015."},null,null,null,null,null,null,null,null,"De acordo:"]
[]
[]
[]
[null,null,null,null,null,null,null,null,null,null,"Carimbo e assinatura do superior imediato"]
[]
[null,null,null,null,null,null,"FOLHA DE FREQUÊNCIA MENSAL"]
[null,"Dia","OBSERVAÇÕES",null,null,null,null,null,null,null,null,null,null,null,null,null,null,null,null,"S/ Borda"]
[null,{"$f":"B8","v":1},null,null,null,null,null,null,null,null,null,null,null,null,null,null,null,null,null,{"$f":"W8","v":"não"}]
[null,{"$f":"B9","v":2},null,null,null,null,null,null,null,null,null,null,null,null,null,null,null,null,null,{"$f":"W9","v":"não"}]
[null,{"$f":"B10","v":3},null,null,null,null,null,null,null,null,null,null,null,null,null,null,null,null,null,"não"]
[null,4,null,null,null,null,null,null,null,null,null,null,null,null,null,null,null,null,null,"não"]
[null,5,null,null,null,null,null,null,null,null,null,null,null,null,null,null,null,null,null,"não"]
[null,6,null,null,null,null,null,null,null,null,null,null,null,null,null,null,null,null,null,"não"]
[null,7,null,null,null,null,null,null,null,null,null,null,null,null,null,null,null,null,null,"não"]
[null,8,null,null,null,null,null,null,null,null,null,null,null,null,null,null,null,null,null,"não"]
[null,9,null,null,null,null,null,null,null,null,null,null,null,null,null,null,null,null,null,"não"]
[null,10,null,null,null,null,null,null,null,null,null,null,null,null,null,null,null,null,null,"não"]
[null,11,null,null,null,null,null,null,null,null,null,null,null,null,null,null,null,null,null,"não"]
[null,12,null,null,null,null,null,null,null,null,null,null,null,null,null,null,null,null,null,"não"]
[null,13,null,null,null,null,null,null,null,null,null,null,null,null,null,null,null,null,null,"não"]
[null,14,null,null,null,null,null,null,null,null,null,null,null,null,null,null,null,null,null,"não"]
[null,15,null,null,null,null,null,null,null,null,null,null,null,null,null,null,null,null,null,"não"]
[null,16,null,null,null,null,null,null,null,null,null,null,null,null,null,null,null,null,null,"não"]
[null,17,null,null,null,null,null,null,null,null,null,null,null,null,null,null,null,null,null,"não"]
[null,18,null,null,null,null,null,null,null,null,null,null,null,null,null,null,null,null,null,"não"]
[null,19,null,null,null,null,null,null,null,null,null,null,null,null,null,null,null,null,null,"não"]
[null,20,null,null,null,null,null,null,null,null,null,null,null,null,null,null,null,null,null,"não"]
[null,21,null,null,null,null,null,null,null,null,null,null,null,null,null,null,null,null,null,"não"]
[null,22,null,null,null,null,null,null,null,null,null,null,null,null,null,null,null,null,null,"não"]
[null,23,null,null,null,null,null,null,null,null,null,null,null,null,null,null,null,null,null,"não"]
[null,24,null,null,null,null,null,null,null,null,null,null,null,null,null,null,null,null,null,"não"]
[null,25,null,null,null,null,null,null,null,null,null,null,null,null,null,null,null,null,null,"não"]
[null,26,null,null,null,null,null,null,null,null,null,null,null,null,null,null,null,null,null,"não"]
[null,27,null,null,null,null,null,null,null,null,null,null,null,null,null,null,null,null,null,"não"]
[null,28,null,null,null,null,null,null,null,null,null,null,null,null,null,null,null,null,null,"não"]
[null,29,null,null,null,null,null,null,null,null,null,null,null,null,null,null,null,null,null,"não"]
[null,30,null,null,null,null,null,null,null,null,null,null,null,null,null,null,null,null,null,"não"]
[null,"",null,null,null,null,null,null,null,null,null,null,null,null,null,null,null,null,null,"sim"]
[]
[null,null,null,null,null,null,null,null,null,"De acordo:"]
[null,"Assinatura do(a) empregado(a)",null,null,null,null,null,null,null,"Carimbo e assinatura do superior imediato",null,null,null,null,null,null,null," "]

{"sheet":"TODO","index":8,"n_rows":3,"n_cols":1,"rows_kept":3,"cut":false,"hidden":true,"merged":[]}
["# TODO"]
[]
["1. imprimir em pdf"]

{"sheet":"Início","index":9,"n_rows":1,"n_cols":1,"rows_kept":1,"cut":false,"hidden":true,"merged":[[0,0,1,14]]}
["FAVOR HABILITAR MACRO PARA UTILIZAÇÃO DESTA PLANILHA"]